[Event "Live Chess"]
[Site "Chess.com"]
[Date "2024.06.02"]
[Round "-"]
[White "upoe610"]
[Black "missedJariChance"]
[Result "1-0"]
[WhiteElo "2119"]
[BlackElo "1353"]
[TimeControl "300"]
[EndTime "3:35:37 PDT"]
[Termination "upoe610 won by resignation"]

1. e4 {[%clk 0:04:57.6]} 1... c5 {[%clk 0:04:58.1]} 2. Nf3 {[%clk 0:04:56.7]}
2... e6 {[%clk 0:04:54.1]} 3. d4 {[%clk 0:04:55.7]} 3... cxd4 {[%clk 0:04:52.8]}
4. Nxd4 {[%clk 0:04:55.6]} 4... Nc6 {[%clk 0:04:51.7]} 5. Nc3 {[%clk 0:04:54.5]}
5... a6 {[%clk 0:04:49.5]} 6. g4 {[%clk 0:04:51.6]} 6... Qc7 {[%clk 0:04:48.4]}
7. Nxc6 {[%clk 0:04:44.8]} 7... bxc6 {[%clk 0:04:46.1]} 8. Bg2 {[%clk
0:04:36.9]} 8... Be7 {[%clk 0:04:43.8]} 9. Be3 {[%clk 0:04:30.8]} 9... Nf6
{[%clk 0:04:38.5]} 10. g5 {[%clk 0:04:29.3]} 10... Ng8 {[%clk 0:04:32.5]} 11.
Qd4 {[%clk 0:04:27.4]} 11... e5 {[%clk 0:04:21.4]} 12. Qd2 {[%clk 0:04:25.9]}
12... Bb4 {[%clk 0:04:08.4]} 13. a3 {[%clk 0:04:24.2]} 13... Ba5 {[%clk
0:03:49.5]} 14. b4 {[%clk 0:04:22.7]} 14... Bb6 {[%clk 0:03:46.7]} 15. Bxb6
{[%clk 0:04:21.4]} 15... Qxb6 {[%clk 0:03:45.5]} 16. Qd6 {[%clk 0:04:20.9]}
16... Qd4 {[%clk 0:03:24]} 17. Qxd4 {[%clk 0:04:17.3]} 17... exd4 {[%clk
0:03:22.7]} 18. Ne2 {[%clk 0:04:17.2]} 18... Ne7 {[%clk 0:03:17.4]} 19. Nxd4
{[%clk 0:04:15.4]} 19... O-O {[%clk 0:03:15.7]} 20. O-O {[%clk 0:04:13.8]} 20...
d5 {[%clk 0:03:07.2]} 21. exd5 {[%clk 0:04:12.1]} 21... Nxd5 {[%clk 0:03:03]}
22. Nxc6 {[%clk 0:03:50.8]} 22... Be6 {[%clk 0:02:53]} 23. Bxd5 {[%clk
0:03:40.4]} 23... Bxd5 {[%clk 0:02:50.2]} 24. Ne7+ {[%clk 0:03:39.3]} 1-0

[Event "Live Chess"]
[Site "Chess.com"]
[Date "2024.06.02"]
[Round "-"]
[White "vincents82"]
[Black "80Times"]
[Result "1-0"]
[WhiteElo "2007"]
[BlackElo "1899"]
[TimeControl "300"]
[EndTime "3:35:37 PDT"]
[Termination "vincents82 won by resignation"]

1. e4 {[%clk 0:04:56]} 1... g6 {[%clk 0:04:59.2]} 2. d4 {[%clk 0:04:54.9]} 2...
d6 {[%clk 0:04:58.6]} 3. Nc3 {[%clk 0:04:54.6]} 3... c6 {[%clk 0:04:58.1]} 4.
Nf3 {[%clk 0:04:54.2]} 4... Bg7 {[%clk 0:04:57.5]} 5. Be2 {[%clk 0:04:53.8]}
5... Nd7 {[%clk 0:04:56.8]} 6. Be3 {[%clk 0:04:53.4]} 6... h6 {[%clk 0:04:55.4]}
7. Qd2 {[%clk 0:04:53]} 7... Ngf6 {[%clk 0:04:53]} 8. O-O {[%clk 0:04:51.1]}
8... b5 {[%clk 0:04:51.8]} 9. a3 {[%clk 0:04:50]} 9... a5 {[%clk 0:04:50.4]} 10.
e5 {[%clk 0:04:47.8]} 10... Ng4 {[%clk 0:04:47.9]} 11. exd6 {[%clk 0:04:44.6]}
11... exd6 {[%clk 0:04:47]} 12. Bf4 {[%clk 0:04:33.9]} 12... Qe7 {[%clk
0:04:35.6]} 13. Rfe1 {[%clk 0:04:26.2]} 13... O-O {[%clk 0:04:32.6]} 14. Bxb5
{[%clk 0:04:21.7]} 14... Qf6 {[%clk 0:04:30.2]} 15. Bxc6 {[%clk 0:04:14.9]}
15... Rb8 {[%clk 0:04:29.1]} 16. Nd5 {[%clk 0:04:06.7]} 1-0

[Event "Live Chess"]
[Site "Chess.com"]
[Date "2024.06.02"]
[Round "-"]
[White "f4nomore"]
[Black "slava_ukr"]
[Result "0-1"]
[WhiteElo "1254"]
[BlackElo "2418"]
[TimeControl "300"]
[EndTime "3:35:57 PDT"]
[Termination "slava_ukr won by resignation"]

1. c4 {[%clk 0:04:56.3]} 1... e5 {[%clk 0:04:58.4]} 2. Nc3 {[%clk 0:04:54.6]}
2... f5 {[%clk 0:04:56.3]} 3. d3 {[%clk 0:04:53.8]} 3... Nf6 {[%clk 0:04:55.5]}
4. g3 {[%clk 0:04:52.8]} 4... Bc5 {[%clk 0:04:54.5]} 5. Bg2 {[%clk 0:04:51.4]}
5... O-O {[%clk 0:04:53.3]} 6. Nf3 {[%clk 0:04:50]} 6... d6 {[%clk 0:04:52.6]}
7. O-O {[%clk 0:04:47.8]} 7... Nc6 {[%clk 0:04:51.8]} 8. a3 {[%clk 0:04:42.1]}
8... Qe8 {[%clk 0:04:50.9]} 9. b4 {[%clk 0:04:39.8]} 9... Bb6 {[%clk 0:04:50.3]}
10. Bb2 {[%clk 0:04:26.1]} 10... f4 {[%clk 0:04:49.3]} 11. Nd5 {[%clk
0:04:17.3]} 11... fxg3 {[%clk 0:04:47.6]} 12. hxg3 {[%clk 0:04:12.7]} 12... Qh5
{[%clk 0:04:46.3]} 13. Nxb6 {[%clk 0:03:55.7]} 13... axb6 {[%clk 0:04:44.8]} 14.
e4 {[%clk 0:03:46.9]} 14... Ng4 {[%clk 0:04:42]} 15. Nh4 {[%clk 0:03:43.9]}
15... g5 {[%clk 0:04:38.2]} 16. Bh3 {[%clk 0:03:40.8]} 16... gxh4 {[%clk
0:04:36.5]} 17. Bxg4 {[%clk 0:03:36.6]} 17... Bxg4 {[%clk 0:04:35.3]} 18. f3
{[%clk 0:03:34.1]} 18... hxg3 {[%clk 0:04:33.8]} 19. Qd2 {[%clk 0:03:25.3]}
19... Bxf3 {[%clk 0:04:32.4]} 0-1

[Event "Live Chess"]
[Site "Chess.com"]
[Date "2024.06.02"]
[Round "-"]
[White "Mikhail_Golubev"]
[Black "Purple1szed"]
[Result "1-0"]
[WhiteElo "2513"]
[BlackElo "2047"]
[TimeControl "300"]
[EndTime "3:36:07 PDT"]
[Termination "Mikhail_Golubev won by checkmate"]

1. e4 {[%clk 0:04:58.3]} 1... e5 {[%clk 0:04:58.7]} 2. Nf3 {[%clk 0:04:57.3]}
2... Nc6 {[%clk 0:04:58.3]} 3. Bc4 {[%clk 0:04:52.1]} 3... Nf6 {[%clk
0:04:57.3]} 4. d3 {[%clk 0:04:50]} 4... Bc5 {[%clk 0:04:56.7]} 5. c3 {[%clk
0:04:49.3]} 5... h6 {[%clk 0:04:56.2]} 6. Nbd2 {[%clk 0:04:45.7]} 6... d6 {[%clk
0:04:55]} 7. a4 {[%clk 0:04:42.5]} 7... Bb6 {[%clk 0:04:54.2]} 8. Bb3 {[%clk
0:04:36]} 8... a5 {[%clk 0:04:53.3]} 9. O-O {[%clk 0:04:27.2]} 9... O-O {[%clk
0:04:52.8]} 10. Nc4 {[%clk 0:04:22.7]} 10... Be6 {[%clk 0:04:48.5]} 11. Nxb6
{[%clk 0:04:20.8]} 11... cxb6 {[%clk 0:04:48.4]} 12. Bxe6 {[%clk 0:04:18.6]}
12... fxe6 {[%clk 0:04:48.3]} 13. d4 {[%clk 0:04:06.9]} 13... Nxe4 {[%clk
0:04:43.3]} 14. d5 {[%clk 0:04:04.1]} 14... Ne7 {[%clk 0:04:35.1]} 15. dxe6
{[%clk 0:04:02.1]} 15... Nc5 {[%clk 0:04:34.6]} 16. Be3 {[%clk 0:03:54]} 16...
Nxe6 {[%clk 0:04:31.9]} 17. Qb3 {[%clk 0:03:49.7]} 17... Qd7 {[%clk 0:04:22.6]}
18. Nd2 {[%clk 0:03:29]} 18... Kh7 {[%clk 0:04:15.9]} 19. Bxb6 {[%clk
0:03:14.7]} 19... Nc5 {[%clk 0:04:04.6]} 20. Bxc5 {[%clk 0:03:11.5]} 20... dxc5
{[%clk 0:04:04.5]} 21. Ne4 {[%clk 0:03:08.6]} 21... Rac8 {[%clk 0:03:54.2]} 22.
Rad1 {[%clk 0:03:03]} 22... Qc6 {[%clk 0:03:46.9]} 23. Rfe1 {[%clk 0:02:46.7]}
23... Nf5 {[%clk 0:03:40.2]} 24. Qb5 {[%clk 0:02:31.8]} 24... Qxb5 {[%clk
0:03:27.1]} 25. axb5 {[%clk 0:02:31.7]} 25... b6 {[%clk 0:03:20.8]} 26. Rd7
{[%clk 0:02:21.9]} 26... Nh4 {[%clk 0:02:50]} 27. Red1 {[%clk 0:02:15.7]} 27...
Nf5 {[%clk 0:02:37.7]} 28. g3 {[%clk 0:01:58.5]} 28... Ra8 {[%clk 0:02:23.9]}
29. Rb7 {[%clk 0:01:47.4]} 29... Rab8 {[%clk 0:02:22.5]} 30. Rxb8 {[%clk
0:01:38.6]} 30... Rxb8 {[%clk 0:02:22.4]} 31. Rd7 {[%clk 0:01:37.4]} 31... Kg6
{[%clk 0:02:08.7]} 32. Kf1 {[%clk 0:01:35.2]} 32... h5 {[%clk 0:01:53.2]} 33.
Ke2 {[%clk 0:01:31.7]} 33... Re8 {[%clk 0:01:43.6]} 34. Kd3 {[%clk 0:01:30.4]}
34... Re6 {[%clk 0:01:27]} 35. h4 {[%clk 0:01:23.7]} 35... Nh6 {[%clk
0:01:22.5]} 36. Kc4 {[%clk 0:01:13.6]} 36... Ng4 {[%clk 0:01:19.8]} 37. Kd5
{[%clk 0:01:07.2]} 37... Re8 {[%clk 0:01:09.3]} 38. Rd6+ {[%clk 0:01:04.9]}
38... Kf5 {[%clk 0:00:46.1]} 39. Rxb6 {[%clk 0:00:57.5]} 39... Rd8+ {[%clk
0:00:42]} 40. Rd6 {[%clk 0:00:51.8]} 40... Rxd6+ {[%clk 0:00:35.9]} 41. Nxd6+
{[%clk 0:00:49.5]} 41... Kf6 {[%clk 0:00:35.6]} 42. Ne4+ {[%clk 0:00:46.9]}
42... Ke7 {[%clk 0:00:34]} 43. Kc6 {[%clk 0:00:43.8]} 43... Kd8 {[%clk 0:00:33]}
44. b6 {[%clk 0:00:38.5]} 44... Kc8 {[%clk 0:00:31.1]} 45. Nxc5 {[%clk
0:00:37.6]} 45... Nf6 {[%clk 0:00:29]} 46. b7+ {[%clk 0:00:36]} 46... Kb8 {[%clk
0:00:25.1]} 47. Na6+ {[%clk 0:00:34.7]} 47... Ka7 {[%clk 0:00:25]} 48. b8=Q+
{[%clk 0:00:33.5]} 48... Kxa6 {[%clk 0:00:24.9]} 49. Qa8# {[%clk 0:00:32.8]} 1-0

[Event "Live Chess"]
[Site "Chess.com"]
[Date "2024.06.02"]
[Round "-"]
[White "Tatarinov_Maxim"]
[Black "ZatixMajor"]
[Result "1-0"]
[WhiteElo "2301"]
[BlackElo "2030"]
[TimeControl "300"]
[EndTime "3:36:08 PDT"]
[Termination "Tatarinov_Maxim won by resignation"]

1. Nf3 {[%clk 0:04:56.2]} 1... c5 {[%clk 0:04:59]} 2. g3 {[%clk 0:04:55]} 2...
Nc6 {[%clk 0:04:58.5]} 3. Bg2 {[%clk 0:04:54.4]} 3... g6 {[%clk 0:04:58.2]} 4.
O-O {[%clk 0:04:53.5]} 4... Bg7 {[%clk 0:04:57.9]} 5. c4 {[%clk 0:04:53]} 5...
Nf6 {[%clk 0:04:57.5]} 6. Nc3 {[%clk 0:04:52.5]} 6... O-O {[%clk 0:04:57.1]} 7.
d4 {[%clk 0:04:51.7]} 7... cxd4 {[%clk 0:04:56.9]} 8. Nxd4 {[%clk 0:04:51.1]}
8... a6 {[%clk 0:04:54.2]} 9. c5 {[%clk 0:04:49.6]} 9... Qc7 {[%clk 0:04:49.8]}
10. Nb3 {[%clk 0:04:48.3]} 10... a5 {[%clk 0:04:34.9]} 11. Bf4 {[%clk 0:04:46]}
11... e5 {[%clk 0:04:32.3]} 12. Bg5 {[%clk 0:04:44.5]} 12... a4 {[%clk
0:04:31.5]} 13. Nd2 {[%clk 0:04:28.4]} 13... Nd4 {[%clk 0:04:30.1]} 14. Rc1
{[%clk 0:04:18.2]} 14... Ne6 {[%clk 0:04:23.5]} 15. Bxf6 {[%clk 0:03:59.1]}
15... Bxf6 {[%clk 0:04:22.6]} 16. Nxa4 {[%clk 0:03:57.6]} 16... Qa5 {[%clk
0:03:59.5]} 17. Nb6 {[%clk 0:03:31.7]} 17... Ra6 {[%clk 0:03:53.7]} 18. a3
{[%clk 0:03:22.5]} 18... Nxc5 {[%clk 0:03:37.4]} 19. Nxc8 {[%clk 0:03:05.4]}
19... Rxc8 {[%clk 0:03:34.8]} 20. b4 {[%clk 0:03:03.6]} 20... Qxa3 {[%clk
0:03:34.4]} 21. bxc5 {[%clk 0:03:02.1]} 21... Rxc5 {[%clk 0:03:33.3]} 22. Rxc5
{[%clk 0:02:55.4]} 22... Qxc5 {[%clk 0:03:33.2]} 23. Bxb7 {[%clk 0:02:54.1]}
23... Rd6 {[%clk 0:03:32.6]} 24. Ne4 {[%clk 0:02:46.9]} 24... Rxd1 {[%clk
0:03:23.5]} 25. Nxc5 {[%clk 0:02:45.8]} 1-0

[Event "Live Chess"]
[Site "Chess.com"]
[Date "2024.06.02"]
[Round "-"]
[White "NAZRIZ1977"]
[Black "SavagePawn7"]
[Result "0-1"]
[WhiteElo "2094"]
[BlackElo "678"]
[TimeControl "300"]
[EndTime "3:36:11 PDT"]
[Termination "SavagePawn7 won on time"]

1. e4 {[%clk 0:04:56.3]} 1... d5 {[%clk 0:04:56.9]} 2. exd5 {[%clk 0:04:55.1]}
2... Nf6 {[%clk 0:04:55]} 3. Nc3 {[%clk 0:04:53.9]} 3... Nxd5 {[%clk 0:04:48.4]}
4. Nf3 {[%clk 0:04:53.4]} 4... Be6 {[%clk 0:04:39.4]} 5. d4 {[%clk 0:04:50.4]}
5... c6 {[%clk 0:04:34.2]} 6. h3 {[%clk 0:04:49.3]} 6... Nxc3 {[%clk 0:04:26]}
7. bxc3 {[%clk 0:04:48.2]} 7... g6 {[%clk 0:04:22.6]} 8. Be2 {[%clk 0:04:42.3]}
8... Bg7 {[%clk 0:04:20.9]} 9. O-O {[%clk 0:04:40.8]} 9... O-O {[%clk
0:04:18.5]} 10. a4 {[%clk 0:04:40.2]} 10... Nd7 {[%clk 0:04:07.4]} 11. a5 {[%clk
0:04:34.8]} 11... c5 {[%clk 0:03:58.3]} 12. d5 {[%clk 0:04:32.4]} 12... Bf5
{[%clk 0:03:52.6]} 13. Nh4 {[%clk 0:04:16.8]} 13... Bxc3 {[%clk 0:03:48.8]} 14.
Ra3 {[%clk 0:03:56.3]} 14... Bf6 {[%clk 0:03:42.6]} 15. Nxf5 {[%clk 0:03:54.2]}
15... gxf5 {[%clk 0:03:39.4]} 16. Bh6 {[%clk 0:03:50.6]} 16... Bg7 {[%clk
0:03:32.9]} 17. Rg3 {[%clk 0:03:48.3]} 17... Re8 {[%clk 0:03:00.6]} 18. Rxg7+
{[%clk 0:03:26.5]} 18... Kh8 {[%clk 0:02:58.8]} 19. Qa1 {[%clk 0:03:25.4]} 19...
Nf6 {[%clk 0:02:36]} 20. Bb5 {[%clk 0:03:18.3]} 20... Rg8 {[%clk 0:02:30.7]} 21.
Rxg8+ {[%clk 0:03:16.4]} 21... Qxg8 {[%clk 0:02:29.3]} 22. Re1 {[%clk
0:03:08.7]} 22... Qg6 {[%clk 0:02:13.3]} 23. Rxe7 {[%clk 0:02:57.9]} 23... Qxh6
{[%clk 0:02:01.8]} 0-1

[Event "Live Chess"]
[Site "Chess.com"]
[Date "2024.06.02"]
[Round "-"]
[White "GerardATHart"]
[Black "TC2304"]
[Result "0-1"]
[WhiteElo "1367"]
[BlackElo "2338"]
[TimeControl "300"]
[EndTime "3:36:30 PDT"]
[Termination "TC2304 won by resignation"]

1. e4 {[%clk 0:04:55.1]} 1... c6 {[%clk 0:04:52.8]} 2. d4 {[%clk 0:04:53.1]}
2... d5 {[%clk 0:04:52]} 3. exd5 {[%clk 0:04:50.9]} 3... cxd5 {[%clk 0:04:51.9]}
4. Bd3 {[%clk 0:04:49.2]} 4... Nf6 {[%clk 0:04:51]} 5. h3 {[%clk 0:04:47.7]}
5... Nc6 {[%clk 0:04:49.6]} 6. Nf3 {[%clk 0:04:46.2]} 6... g6 {[%clk 0:04:31.1]}
7. c3 {[%clk 0:04:42.9]} 7... Bg7 {[%clk 0:04:29.1]} 8. Bg5 {[%clk 0:04:40.8]}
8... O-O {[%clk 0:04:27.7]} 9. Qd2 {[%clk 0:04:39.4]} 9... Ne4 {[%clk
0:04:25.8]} 10. Bxe4 {[%clk 0:04:31.2]} 10... dxe4 {[%clk 0:04:25.7]} 11. Nh4
{[%clk 0:04:18.3]} 11... Qd5 {[%clk 0:04:11.9]} 12. O-O {[%clk 0:03:57.9]} 12...
e5 {[%clk 0:04:10.4]} 13. dxe5 {[%clk 0:03:39.4]} 13... Qxd2 {[%clk 0:03:59.5]}
14. Nxd2 {[%clk 0:03:37.6]} 14... Nxe5 {[%clk 0:03:46.9]} 15. Nxe4 {[%clk
0:03:29.9]} 15... f6 {[%clk 0:03:42.3]} 16. Be3 {[%clk 0:03:15.1]} 16... g5
{[%clk 0:03:40.7]} 17. Nf3 {[%clk 0:03:08.9]} 17... Nxf3+ {[%clk 0:03:40.1]} 18.
gxf3 {[%clk 0:03:07.1]} 18... Bxh3 {[%clk 0:03:40]} 19. Rfd1 {[%clk 0:02:57.5]}
19... Rfd8 {[%clk 0:03:39.4]} 20. Bd4 {[%clk 0:02:47.3]} 20... Kf7 {[%clk
0:03:32.2]} 21. Nc5 {[%clk 0:02:28.6]} 21... b6 {[%clk 0:03:27.5]} 22. Nd3
{[%clk 0:02:11.5]} 22... Rd7 {[%clk 0:03:18.1]} 23. Rd2 {[%clk 0:01:42.4]} 23...
Rad8 {[%clk 0:03:17.1]} 24. Rad1 {[%clk 0:01:38.7]} 24... Be6 {[%clk 0:03:08.9]}
25. Nb4 {[%clk 0:01:33.1]} 25... a5 {[%clk 0:02:53.9]} 26. Nc6 {[%clk
0:01:25.2]} 26... Rc8 {[%clk 0:02:52.7]} 27. Bxb6 {[%clk 0:00:48]} 27... Rxd2
{[%clk 0:02:48.6]} 28. Rxd2 {[%clk 0:00:46.3]} 28... Rxc6 {[%clk 0:02:48.2]} 29.
Bxa5 {[%clk 0:00:44.6]} 29... Bxa2 {[%clk 0:02:42.2]} 30. b4 {[%clk 0:00:42.8]}
30... Bc4 {[%clk 0:02:34.9]} 31. Rd7+ {[%clk 0:00:32.8]} 31... Kg6 {[%clk
0:02:34]} 32. Rb7 {[%clk 0:00:26.4]} 32... f5 {[%clk 0:02:33.3]} 33. Rb6 {[%clk
0:00:24.3]} 33... Rxb6 {[%clk 0:02:31.7]} 34. Bxb6 {[%clk 0:00:20.8]} 34... Bxc3
{[%clk 0:02:31.4]} 35. Kg2 {[%clk 0:00:16.5]} 35... Bxb4 {[%clk 0:02:29.9]} 36.
Kg3 {[%clk 0:00:14.2]} 36... Bd5 {[%clk 0:02:28.3]} 37. Be3 {[%clk 0:00:11.2]}
37... f4+ {[%clk 0:02:27.1]} 0-1

[Event "Live Chess"]
[Site "Chess.com"]
[Date "2024.06.02"]
[Round "-"]
[White "Grace6363"]
[Black "Nathaniel250"]
[Result "0-1"]
[WhiteElo "1145"]
[BlackElo "1526"]
[TimeControl "300"]
[EndTime "3:36:34 PDT"]
[Termination "Nathaniel250 won by resignation"]

1. d4 {[%clk 0:04:54.8]} 1... Nf6 {[%clk 0:04:58.2]} 2. c4 {[%clk 0:04:54.1]}
2... e6 {[%clk 0:04:57.1]} 3. Nf3 {[%clk 0:04:51.3]} 3... d5 {[%clk 0:04:53]} 4.
cxd5 {[%clk 0:04:50.1]} 4... exd5 {[%clk 0:04:51.7]} 5. a3 {[%clk 0:04:46.7]}
5... Bf5 {[%clk 0:04:48.5]} 6. Bg5 {[%clk 0:04:44.9]} 6... Be7 {[%clk
0:04:46.9]} 7. e3 {[%clk 0:04:43.8]} 7... Ne4 {[%clk 0:04:42.8]} 8. Bxe7 {[%clk
0:04:41.3]} 8... Qxe7 {[%clk 0:04:42.7]} 9. Nc3 {[%clk 0:04:38.6]} 9... O-O
{[%clk 0:04:38.5]} 10. Be2 {[%clk 0:04:33.9]} 10... Nxc3 {[%clk 0:04:37]} 11.
bxc3 {[%clk 0:04:33.2]} 11... Nc6 {[%clk 0:04:26.3]} 12. O-O {[%clk 0:04:28.9]}
12... Nd8 {[%clk 0:04:11.1]} 13. Qb3 {[%clk 0:04:19]} 13... c6 {[%clk
0:04:07.6]} 14. Rfd1 {[%clk 0:04:08.9]} 14... Rb8 {[%clk 0:04:01.1]} 15. Bd3
{[%clk 0:04:06.4]} 15... Bg4 {[%clk 0:03:56.2]} 16. Ne5 {[%clk 0:04:00.7]} 16...
Bxd1 {[%clk 0:03:51]} 17. Rxd1 {[%clk 0:03:57.8]} 17... Ne6 {[%clk 0:03:43.3]}
18. Bf5 {[%clk 0:03:39.5]} 18... g6 {[%clk 0:03:29.1]} 19. Bg4 {[%clk
0:03:33.3]} 19... f5 {[%clk 0:03:26.9]} 20. Be2 {[%clk 0:03:27.9]} 20... Ng5
{[%clk 0:03:21.1]} 21. f4 {[%clk 0:03:21.6]} 21... Nf7 {[%clk 0:03:19]} 22. Kf2
{[%clk 0:02:57.8]} 22... Rfe8 {[%clk 0:03:03.5]} 23. Qb4 {[%clk 0:02:43.9]}
23... Qxb4 {[%clk 0:03:01.3]} 24. axb4 {[%clk 0:02:43.3]} 24... Re7 {[%clk
0:02:50.9]} 25. b5 {[%clk 0:02:37.4]} 25... cxb5 {[%clk 0:02:45.3]} 26. Bxb5
{[%clk 0:02:36.7]} 26... a6 {[%clk 0:02:40.9]} 27. Bd3 {[%clk 0:02:19.4]} 27...
b5 {[%clk 0:02:28.7]} 28. Ra1 {[%clk 0:02:14.3]} 28... Nxe5 {[%clk 0:02:14.8]}
29. dxe5 {[%clk 0:02:11.4]} 29... Re6 {[%clk 0:02:11.2]} 30. h3 {[%clk
0:02:05.8]} 30... h5 {[%clk 0:02:08.9]} 31. Kf3 {[%clk 0:02:03.3]} 31... Rc8
{[%clk 0:02:03.1]} 32. Ra3 {[%clk 0:01:56.5]} 32... Kf7 {[%clk 0:01:55.2]} 33.
g4 {[%clk 0:01:55]} 33... hxg4+ {[%clk 0:01:53.3]} 34. hxg4 {[%clk 0:01:54.4]}
34... fxg4+ {[%clk 0:01:49.5]} 35. Kxg4 {[%clk 0:01:53.7]} 35... Rec6 {[%clk
0:01:40.8]} 36. f5 {[%clk 0:01:44.7]} 36... Rxc3 {[%clk 0:01:35.5]} 37. fxg6+
{[%clk 0:01:42.9]} 37... Kg7 {[%clk 0:01:34.5]} 38. Rxc3 {[%clk 0:01:23.7]}
38... Rxc3 {[%clk 0:01:32.3]} 39. Bf5 {[%clk 0:01:17.3]} 39... Rxe3 {[%clk
0:01:29.6]} 40. e6 {[%clk 0:01:16.5]} 40... d4 {[%clk 0:01:25.1]} 41. Kf4 {[%clk
0:01:14.8]} 41... a5 {[%clk 0:01:18]} 42. Bc2 {[%clk 0:01:10]} 42... Rxe6 {[%clk
0:01:12.6]} 43. Kf5 {[%clk 0:01:08]} 43... Re3 {[%clk 0:01:09.8]} 44. Bb3 {[%clk
0:00:59.4]} 44... a4 {[%clk 0:01:07.2]} 45. Be6 {[%clk 0:00:53.7]} 45... b4
{[%clk 0:01:02.4]} 46. Bd7 {[%clk 0:00:35.1]} 46... a3 {[%clk 0:00:59.1]} 47.
Ba4 {[%clk 0:00:33]} 47... b3 {[%clk 0:00:56.9]} 0-1

[Event "Live Chess"]
[Site "Chess.com"]
[Date "2024.06.02"]
[Round "-"]
[White "elis06"]
[Black "Victor_Bondar"]
[Result "0-1"]
[WhiteElo "2312"]
[BlackElo "1474"]
[TimeControl "300"]
[EndTime "3:36:37 PDT"]
[Termination "Victor_Bondar won by checkmate"]

1. Nf3 {[%clk 0:04:58.5]} 1... Nf6 {[%clk 0:04:57.7]} 2. g3 {[%clk 0:04:57.9]}
2... d5 {[%clk 0:04:53]} 3. Bg2 {[%clk 0:04:57.3]} 3... e6 {[%clk 0:04:40.4]} 4.
O-O {[%clk 0:04:55.9]} 4... c5 {[%clk 0:04:35.3]} 5. c4 {[%clk 0:04:51.1]} 5...
d4 {[%clk 0:04:29.1]} 6. d3 {[%clk 0:04:48]} 6... Nc6 {[%clk 0:04:25.8]} 7. e3
{[%clk 0:04:43.8]} 7... Be7 {[%clk 0:04:15.3]} 8. exd4 {[%clk 0:04:41.8]} 8...
cxd4 {[%clk 0:04:11.8]} 9. Bg5 {[%clk 0:04:40.1]} 9... h5 {[%clk 0:04:03.8]} 10.
Nbd2 {[%clk 0:04:35.4]} 10... a5 {[%clk 0:03:53.2]} 11. Re1 {[%clk 0:04:31]}
11... Ra6 {[%clk 0:03:49.1]} 12. a3 {[%clk 0:04:29.5]} 12... a4 {[%clk
0:03:45.9]} 13. h4 {[%clk 0:04:19.5]} 13... Ng4 {[%clk 0:03:38]} 14. Bxe7 {[%clk
0:04:14.6]} 14... Qxe7 {[%clk 0:03:37.5]} 15. Qe2 {[%clk 0:04:09.8]} 15... O-O
{[%clk 0:03:30.6]} 16. Ng5 {[%clk 0:04:03.5]} 16... e5 {[%clk 0:03:15]} 17. Qe4
{[%clk 0:03:43.8]} 17... g6 {[%clk 0:03:11.1]} 18. Qe2 {[%clk 0:03:35.7]} 18...
Bf5 {[%clk 0:02:43.8]} 19. Nde4 {[%clk 0:03:19.8]} 19... Na5 {[%clk 0:02:39.2]}
20. Nd2 {[%clk 0:02:48.2]} 20... Rb6 {[%clk 0:02:30.2]} 21. Rab1 {[%clk
0:02:44.8]} 21... Nb3 {[%clk 0:02:26.8]} 22. Nge4 {[%clk 0:02:38.2]} 22... Kg7
{[%clk 0:02:12.5]} 23. Nxb3 {[%clk 0:02:35.7]} 23... Rxb3 {[%clk 0:02:09.2]} 24.
Red1 {[%clk 0:02:22.7]} 24... Bxe4 {[%clk 0:02:03.7]} 25. Qxe4 {[%clk
0:02:17.5]} 25... f5 {[%clk 0:02:03.1]} 26. Qe2 {[%clk 0:02:12]} 26... e4 {[%clk
0:01:52.3]} 27. dxe4 {[%clk 0:02:03.6]} 27... fxe4 {[%clk 0:01:43.4]} 28. Rxd4
{[%clk 0:01:44]} 28... Rxf2 {[%clk 0:01:37]} 29. Qxe4 {[%clk 0:01:06.9]} 29...
Qxe4 {[%clk 0:01:28.5]} 30. Rxe4 {[%clk 0:01:05.2]} 30... Rxg3 {[%clk 0:01:28]}
31. Rxg4 {[%clk 0:01:01.5]} 31... Rfxg2+ {[%clk 0:01:20.5]} 32. Kf1 {[%clk
0:00:59.6]} 32... Rxg4 {[%clk 0:01:16.1]} 33. Re1 {[%clk 0:00:54.3]} 33... Rh2
{[%clk 0:01:12.9]} 34. Re3 {[%clk 0:00:52.3]} 34... Rxc4 {[%clk 0:01:10.7]} 35.
Re7+ {[%clk 0:00:49.9]} 35... Kf6 {[%clk 0:01:08.7]} 36. Re2 {[%clk 0:00:47.1]}
36... Rc1+ {[%clk 0:01:04.5]} 37. Re1 {[%clk 0:00:46.1]} 37... Rh1+ {[%clk
0:01:01.9]} 38. Kf2 {[%clk 0:00:45.3]} 38... Rhxe1 {[%clk 0:01:00.4]} 39. Kg2
{[%clk 0:00:44.5]} 39... Re3 {[%clk 0:00:57.2]} 40. Kf2 {[%clk 0:00:43.3]} 40...
Rd3 {[%clk 0:00:54.1]} 41. Ke2 {[%clk 0:00:42.4]} 41... Rh3 {[%clk 0:00:53]} 42.
Kf2 {[%clk 0:00:41.6]} 42... Rc2+ {[%clk 0:00:51.9]} 43. Kg1 {[%clk 0:00:40.8]}
43... Rd3 {[%clk 0:00:50.8]} 44. Kf1 {[%clk 0:00:40.3]} 44... Rd1# {[%clk
0:00:49.7]} 0-1

[Event "Live Chess"]
[Site "Chess.com"]
[Date "2024.06.02"]
[Round "-"]
[White "lateforthesky"]
[Black "Queensandpawns"]
[Result "0-1"]
[WhiteElo "2075"]
[BlackElo "2245"]
[TimeControl "300"]
[EndTime "3:37:02 PDT"]
[Termination "Queensandpawns won by resignation"]

1. e4 {[%clk 0:04:56.1]} 1... e5 {[%clk 0:04:55.9]} 2. Nf3 {[%clk 0:04:39]} 2...
Nf6 {[%clk 0:04:52.1]} 3. d4 {[%clk 0:04:36.6]} 3... Nxe4 {[%clk 0:04:51.3]} 4.
dxe5 {[%clk 0:04:34]} 4... d5 {[%clk 0:04:50.9]} 5. Bd3 {[%clk 0:04:31.2]} 5...
Nc5 {[%clk 0:04:46.9]} 6. Be2 {[%clk 0:04:27.2]} 6... Nc6 {[%clk 0:04:46.2]} 7.
O-O {[%clk 0:04:24.4]} 7... Be6 {[%clk 0:04:44.7]} 8. Bg5 {[%clk 0:04:20.7]}
8... Be7 {[%clk 0:04:44]} 9. Bxe7 {[%clk 0:04:18.6]} 9... Qxe7 {[%clk
0:04:43.9]} 10. Re1 {[%clk 0:04:17.5]} 10... O-O-O {[%clk 0:04:41.4]} 11. Nc3
{[%clk 0:03:55.8]} 11... d4 {[%clk 0:04:30.8]} 12. Nb5 {[%clk 0:03:49.7]} 12...
Qd7 {[%clk 0:04:17]} 13. a4 {[%clk 0:03:47.1]} 13... a6 {[%clk 0:04:14.7]} 14.
Na3 {[%clk 0:03:39.3]} 14... g5 {[%clk 0:04:06.1]} 15. Bc4 {[%clk 0:03:27.3]}
15... g4 {[%clk 0:04:04.4]} 16. Nd2 {[%clk 0:03:24.6]} 16... Rdg8 {[%clk
0:03:59.6]} 17. Bxe6 {[%clk 0:03:21]} 17... Qxe6 {[%clk 0:03:59.5]} 18. Nac4
{[%clk 0:03:19.6]} 18... h5 {[%clk 0:03:56.7]} 19. Ra3 {[%clk 0:03:16.9]} 19...
h4 {[%clk 0:03:55.7]} 20. Qb1 {[%clk 0:02:59.2]} 20... g3 {[%clk 0:03:53.3]} 21.
fxg3 {[%clk 0:02:52.4]} 21... hxg3 {[%clk 0:03:53.2]} 22. Rxg3 {[%clk
0:02:50.4]} 22... Rxg3 {[%clk 0:03:51.9]} 23. hxg3 {[%clk 0:02:48.3]} 23... Qh6
{[%clk 0:03:49.9]} 24. b4 {[%clk 0:02:40.6]} 24... Nxa4 {[%clk 0:03:46.8]} 25.
Qb3 {[%clk 0:02:33.2]} 25... Nc3 {[%clk 0:03:44]} 26. Nf3 {[%clk 0:02:10.2]}
26... Qg6 {[%clk 0:02:54.7]} 27. Nxd4 {[%clk 0:01:57.6]} 27... Qxg3 {[%clk
0:02:51.6]} 28. Nf3 {[%clk 0:01:48.6]} 28... Nd4 {[%clk 0:02:34.8]} 29. Nd6+
{[%clk 0:01:21.8]} 29... Kb8 {[%clk 0:02:29.3]} 30. Qxc3 {[%clk 0:01:08.7]}
30... Nxf3+ {[%clk 0:02:25.9]} 0-1